fUST/lending_fUST_20251017
["ID","MTS","AMOUNT","RATE_DAILY","PERIOD"]
[391543515,1760644241335,-151.0,0.00042999,120]
[391543517,1760644241345,-250.0,0.00042999,120]
[391543519,1760644241354,-151.0,0.00042999,120]
[391543521,1760644241363,-250.0,0.00042999,120]
[391543522,1760644241373,-151.0,0.00042999,120]
[391543524,1760644241382,-250.0,0.00042999,120]
[391543526,1760644241391,-151.0,0.00042999,120]
[391543528,1760644241401,-151.0,0.00042999,120]
[391543530,1760644241411,-250.0,0.00042999,120]
[391543532,1760644241420,-250.0,0.00042999,120]
[391543534,1760644241430,-151.0,0.00042999,120]
[391543536,1760644241450,-250.0,0.00042999,120]
[391543538,1760644241459,-250.0,0.00042999,120]
[391543540,1760644241469,-151.0,0.00042999,120]
[391543542,1760644241478,-250.0,0.00042999,120]
[391543544,1760644241487,-151.0,0.00042999,120]
[391543546,1760644241496,-250.0,0.00042999,120]
[391543548,1760644241505,-248.04596635,0.00042999,120]
[391543550,1760644241514,-250.0,0.00042999,120]
[391543551,1760644241523,-250.0,0.00042999,120]
[391543553,1760644241532,-17300.0,0.00042999,120]
[391543555,1760644241542,-250.0,0.00042999,120]
[391543557,1760644241551,-250.0,0.00042999,120]
[391543559,1760644241560,-17940.1,0.00042999,120]
[391543561,1760644241570,-250.0,0.00042999,120]
[391543563,1760644241579,-250.0,0.00042999,120]
[391543565,1760644241588,-18603.8837,0.00042999,120]
[391543567,1760644241597,-250.0,0.00042999,120]
[391543569,1760644241606,-151.0,0.00042999,120]
[391543571,1760644241615,-19292.2273969,0.00042999,120]
[391543573,1760644241624,-250.0,0.00042999,120]
[391543575,1760644241633,-151.0,0.00042999,120]
[391543577,1760644241642,-20006.03981059,0.00042999,120]
[391543579,1760644241651,-250.0,0.00042999,120]
[391543581,1760644241660,-1888.0,0.00042999,30]
[391543583,1760644241669,-151.0,0.00042999,120]
[391543585,1760644241678,-151.0,0.00042999,120]
[391543587,1760644241687,-20746.26328358,0.00042999,120]
[391543589,1760644241696,-250.0,0.00042999,120]
[391543591,1760644241705,-1957.856,0.00042999,30]
[391543593,1760644241715,-263.37743979,0.00042999,120]
[391543595,1760644241725,-151.0,0.00042999,120]
[391543596,1760644241735,-250.0,0.00042999,120]
[391543598,1760644241744,-1325.29478779,0.00042999,30]
[391543600,1760644241753,-151.0,0.00042999,120]
[391543602,1760644241763,-250.0,0.00042999,120]
[391543604,1760644241772,-151.0,0.00042999,120]
[391543606,1760644241782,-250.0,0.00042999,120]
[391543608,1760644241791,-151.0,0.00042999,120]
[391543610,1760644241801,-250.0,0.00042999,120]
[391543612,1760644241810,-151.0,0.00042999,120]
[391543614,1760644241819,-250.0,0.00042999,120]
[391543616,1760644241829,-151.0,0.00042999,120]
[391543618,1760644241838,-151.0,0.00042999,120]
[391543620,1760644241847,-151.0,0.00042999,120]
[391543622,1760644241856,-151.0,0.00042999,120]
[391543624,1760644241866,-250.0,0.00042999,120]
[391543626,1760644241875,-151.0,0.00042999,120]
[391543628,1760644241884,-250.0,0.00042999,120]
[391543630,1760644241894,-281.76654328,0.00042999,120]
[391543631,1760644241903,-250.0,0.00042999,120]
[391543633,1760644241913,-250.0,0.00042999,120]
[391543635,1760644241922,-250.0,0.00042999,120]
[391543637,1760644241932,-250.0,0.00042999,120]
[391543639,1760644241942,-250.0,0.00042999,120]
[391543641,1760644241952,-250.0,0.00042999,120]
[391543643,1760644241961,-250.0,0.00042999,120]
[391543645,1760644241971,-250.0,0.00042999,120]
[391543647,1760644241980,-250.0,0.00042999,120]
[391543649,1760644241990,-211133.07448562,0.00043,120]
[391543651,1760644241999,-285.53625724,0.00043,120]
[391543653,1760644242008,-163.0,0.00043,14]
[391543655,1760644242018,-152.0,0.00043,14]
[391543657,1760644242028,-163.0,0.00043,14]
[391543659,1760644242042,-152.0,0.00043,14]
[391543661,1760644242051,-163.0,0.00043,14]
[391543663,1760644242061,-152.0,0.00043,14]
[391543664,1760644242070,-163.0,0.00043,14]
[391543666,1760644242080,-152.0,0.00043,14]
[391543668,1760644242089,-161.69979895,0.00043,14]
[391543670,1760644242099,-152.0,0.00043,14]
[391543672,1760644242112,-330.0,0.00043,14]
[391543674,1760644242121,-152.0,0.00043,14]
[391543676,1760644242130,-330.0,0.00043,14]
[391543678,1760644242140,-152.0,0.00043,14]
[391543680,1760644242149,-330.0,0.00043,14]
[391543682,1760644242158,-152.0,0.00043,14]
[391543684,1760644242167,-330.0,0.00043,14]
[391543686,1760644242177,-152.0,0.00043,14]
[391543688,1760644242186,-330.0,0.00043,14]
[391543690,1760644242195,-152.0,0.00043,14]
[391543691,1760644242204,-330.0,0.00043,14]
[391543693,1760644242213,-152.0,0.00043,14]
[391543695,1760644242224,-330.0,0.00043,14]
[391543697,1760644242234,-330.0,0.00043,14]
[391543699,1760644242243,-152.0,0.00043,14]
[391543701,1760644242252,-330.0,0.00043,14]
[391543703,1760644242261,-152.0,0.00043,14]
[391543705,1760644242271,-330.0,0.00043,14]
[391543707,1760644242280,-152.0,0.00043,14]
[391543709,1760644242289,-162.95094999,0.00043,14]
[391543711,1760644242298,-152.0,0.00043,14]
[391543713,1760644242307,-152.0,0.00043,14]
[391543715,1760644242319,-152.0,0.00043,14]
[391543717,1760644242329,-152.0,0.00043,14]
[391543719,1760644242338,-152.0,0.00043,14]
[391543720,1760644242347,-152.0,0.00043,14]
[391543722,1760644242357,-152.0,0.00043,14]
[391543724,1760644242367,-152.0,0.00043,14]
[391543726,1760644242376,-152.0,0.00043,14]
[391543728,1760644242386,-152.0,0.00043,14]
[391543730,1760644242396,-152.0,0.00043,14]
[391543732,1760644242406,-152.0,0.00043,14]
[391543734,1760644242416,-152.0,0.00043,14]
[391543736,1760644242430,-152.0,0.00043,14]
[391543738,1760644242439,-152.0,0.00043,14]
[391543740,1760644242448,-152.0,0.00043,14]
[391543742,1760644242458,-152.0,0.00043,14]
[391543744,1760644242468,-152.0,0.00043,14]
[391543745,1760644242477,-152.0,0.00043,14]
[391543747,1760644242487,-152.0,0.00043,14]
[391543749,1760644242496,-152.0,0.00043,14]
[391543751,1760644242505,-152.0,0.00043,14]
[391543753,1760644242514,-152.0,0.00043,14]
[391543755,1760644242523,-152.0,0.00043,14]
[391543757,1760644242533,-152.0,0.00043,14]
[391543759,1760644242542,-152.0,0.00043,14]
[391543761,1760644242551,-152.0,0.00043,14]
[391543763,1760644242560,-152.0,0.00043,14]
[391543765,1760644242569,-152.0,0.00043,14]
[391543767,1760644242577,-264.29383983,0.00043,14]
[391543768,1760644242587,-1152.9411,0.00043,120]
[391543770,1760644242596,-1152.9411,0.00043,120]
[391543772,1760644242606,-1152.9411,0.00043,120]
[391543774,1760644242615,-1152.9411,0.00043,120]
[391543776,1760644242624,-249.750356,0.00043,120]
[391543778,1760644242633,-249.750356,0.00043,120]
[391543780,1760644242642,-249.750356,0.00043,120]
[391543782,1760644242651,-249.750356,0.00043,120]
[391543784,1760644242660,-151.0,0.00043,120]
[391543786,1760644242670,-193.0,0.00043,90]
[391543788,1760644242679,-151.0,0.00043,120]
[391543790,1760644242688,-151.0,0.00043,120]
[391543792,1760644242698,-279.75546,0.00043,120]
[391543794,1760644242708,-151.0,0.00043,120]
[391543796,1760644242717,-545.0,0.00043035,7]
[391543798,1760644242730,-545.0,0.00043042,2]
[391543800,1760644242741,-1006.83,0.000431,7]
[391543801,1760644242751,-800.0,0.00043137,14]
[391543803,1760644242760,-800.0,0.00043197,14]
[391543805,1760644242769,-800.0,0.00043218,14]
[391543807,1760644242778,-192.93927548,0.00043253,14]
[391543809,1760644242788,-800.0,0.00043302,14]
[391543811,1760644242797,-800.0,0.00043384,14]
[391543814,1760644242806,-8916.7670604,0.000434,2]
[391543817,1760644242815,-331.13750419,0.000434,2]
[391543820,1760644242824,-16862.16112389,0.000434,2]
[391543823,1760644242833,-1000.0,0.00043421,10]
[391543826,1760644242842,-3191.521,0.00043444,30]
[391543829,1760644242851,-537.05869976,0.00043473,2]
[391543832,1760644242860,-150.0,0.00043473,10]
[391543835,1760644242869,-500.0,0.00043473,10]
[391543836,1760644242879,-150.0,0.00043473,10]
[391543838,1760644242888,-536999.23083895,0.000435,120]
[391543840,1760644242898,-2359.09,0.000435,14]
[391543842,1760644242907,-37706.74127222,0.000435,120]
[391543849,1760644242962,-9955.55508306,0.000435,120]
[391543858,1760644243046,-307.0,0.00040381,2]
[391543876,1760644243230,-398.00686818,0.00040381,2]
[391543878,1760644243240,-236.40313182,0.00041469,2]
[391544133,1760644246115,-322.03480274,0.00038425,2]
[391544135,1760644246125,-474.80042412,0.0003964,2]
[391544137,1760644246136,-104.86222082,0.0003964,2]
[391544139,1760644246145,-865.17009972,0.00041469,2]
[391544141,1760644246155,-151.0,0.00042861,120]
[391544143,1760644246164,-151.0,0.00042861,120]
[391544145,1760644246173,-151.0,0.00042861,120]
[391544147,1760644246182,-151.0,0.00042861,120]
[391544149,1760644246191,-151.0,0.0004289,120]
[391544151,1760644246200,-151.0,0.0004289,120]
[391544153,1760644246209,-151.0,0.0004289,120]
[391544155,1760644246218,-164.435789,0.0004289,120]
[391544157,1760644246230,-250.0,0.00042999,120]
[391544159,1760644246239,-151.0,0.00043,120]
[391544162,1760644246251,-151.0,0.00043,120]
[391544164,1760644246260,-151.0,0.00043,120]
[391544165,1760644246269,-158.13189038,0.00043444,30]
[391544168,1760644246281,-602.44274311,0.00043444,30]
[391544170,1760644246295,-62262.20116651,0.00043444,30]
[391544172,1760644246304,-344.67,0.0004349,10]
[391544174,1760644246315,-441.6621113,0.000435,120]
[391544827,1760644523278,150.0,0.00025205,2]
[391544828,1760644523657,211.35090876,0.00025805,2]
[391544829,1760644928190,417.15472785,0.0003,2]
[391544830,1760645035494,563.96,0.0003,2]
[391544831,1760645158107,-165.04515383,0.00031431,2]
[391544832,1760645158126,-200.0,0.00031431,2]
[391544833,1760645158146,-154.375913,0.00031531,60]
[391544834,1760645158166,-154.375913,0.00031898,20]
[391544835,1760645158185,-172.50430544,0.00032,2]
[391544836,1760645158206,-172.50430544,0.000324,2]
[391544837,1760645158227,-172.50430544,0.000327,2]
[391544838,1760645158247,-172.50430544,0.00033,2]
[391544839,1760645158268,-172.50430544,0.000333,2]
[391544840,1760645158291,-400.0,0.00034184,2]
[391544841,1760645158310,-351.0,0.00034184,3]
[391544842,1760645158330,-440.1753564,0.00034185,2]
[391544843,1760645228114,-355.21032501,0.00034184,2]
[391544844,1760645368098,-2903.00971175,0.00034185,2]
[391544900,1760645432202,-727.73325423,0.0003424,2]
[391544906,1760645432256,-525.58423271,0.0003424,2]
[391545079,1760645438142,-1722.07251306,0.0003424,2]
[391545081,1760645438154,-150.0,0.00034364,2]
[391545084,1760645438164,-252.18891861,0.00034541,2]
[391545086,1760645438176,-208.83070909,0.00034541,2]
[391545087,1760645438185,-612.12525652,0.00034854,120]
[391545090,1760645438197,-151.67408448,0.00034854,120]
[391545092,1760645438207,-113.44628321,0.00034924,2]
[391545094,1760645438218,-607.50848449,0.00034924,2]
[391545096,1760645438234,-279.10748082,0.00034924,2]
[391545098,1760645438245,-786.55177083,0.00034924,2]
[391545101,1760645438257,-237.49439865,0.00034924,2]
[391545103,1760645438266,-154.375913,0.0003628,60]
[391545105,1760645438277,-154.375913,0.00036424,20]
[391545107,1760645438287,-154.375913,0.00036519,21]
[391545109,1760645438296,-400.0,0.00036778,2]
[391545111,1760645438306,-7980.96731876,0.00036779,2]
[391545113,1760645438315,-154.375913,0.00036779,10]
[391545115,1760645438325,-176.383209,0.00036872,60]
[391545117,1760645438335,-300.0,0.00037104,7]
[391545119,1760645438344,-154.375913,0.00037748,5]
[391545121,1760645438353,-154.375913,0.00038241,2]
[391545123,1760645438363,-154.375913,0.0003868,15]
[391545125,1760645438377,-1000.0,0.00038784,30]
[391545127,1760645438387,-560.0,0.00039361,5]
[391545128,1760645438396,-450.0,0.00039843,12]
[391545130,1760645438406,-5950.79,0.00039947,2]
[391545132,1760645438416,-432.0,0.00040302,2]
[391545134,1760645438426,-432.0,0.00040344,7]
[391545136,1760645438436,-219.0,0.00040651,2]
[391545138,1760645438446,-763.799341,0.00040663,120]
[391545140,1760645438458,-219.0,0.00040698,2]
[391545142,1760645438467,-1030.51136878,0.00040808,2]
[391545144,1760645438477,-1610.17401371,0.00040808,2]
[391545146,1760645438487,-219.0,0.00040854,2]
[391545148,1760645438496,-156.895218,0.00040949,20]
[391545150,1760645438505,-154.375913,0.00040949,20]
[391545152,1760645438514,-156.895218,0.00041029,60]
[391545154,1760645438523,-154.375913,0.00041029,60]
[391545156,1760645438535,-243.86714936,0.00041157,2]
[391545158,1760645438544,-278.70531355,0.00041157,2]
[391545160,1760645438554,-402.29984149,0.00041157,2]
[391545161,1760645438564,-459.77124741,0.00041157,2]
[391545163,1760645438574,-717.67418151,0.00041157,2]
[391545165,1760645438583,-156.895218,0.00041527,21]
[391545167,1760645438592,-154.375913,0.00041527,21]
[391545169,1760645438602,-221.0,0.00041544,120]
[391545171,1760645438611,-156.895218,0.00041558,10]
[391545173,1760645438621,-154.375913,0.00041558,10]
[391545175,1760645438630,-220.0,0.00041662,2]
[391545177,1760645438640,-219.0,0.00041679,2]
[391545179,1760645438649,-219.0,0.00041766,120]
[391545181,1760645438662,-156.895218,0.00041832,5]
[391545183,1760645438672,-154.375913,0.00041832,5]
[391545185,1760645438682,-219.0,0.00041871,2]
[391545187,1760645438691,-282.0,0.00042,120]
[391545190,1760645438701,-20000.0,0.00042,120]
[391545191,1760645438711,-154.375913,0.0004208,15]
[391545193,1760645438720,-783.0,0.00042126,5]
[391545195,1760645438730,-219.0,0.00042257,2]
[391545197,1760645438739,-435.04157537,0.00042405,2]
[391545199,1760645438749,-219.0,0.00042516,7]
[391545200,1760645438759,-219.0,0.00042577,7]
[391545201,1760645438768,-590.27193026,0.00042583,17]
[391545202,1760645438778,-219.0,0.00042673,7]
[391545203,1760645438788,-220.0,0.00042689,120]
[391545204,1760645438797,-221.0,0.00042834,7]
[391545205,1760645438808,-300.0,0.00042839,90]
[391545206,1760645438818,-300.0,0.00042839,90]
[391545207,1760645438827,-300.0,0.00042839,90]
[391545208,1760645438837,-221.0,0.00042875,2]
[391545209,1760645438846,-219.0,0.0004288,120]
[391545210,1760645438855,-1590.99940896,0.00042893,4]
[391545211,1760645438865,-427.3099365,0.00042893,4]
[391545212,1760645438875,-259.02783288,0.00042893,4]
[391545213,1760645438885,-4197.49872592,0.0004299,2]
[391545214,1760645438895,-87301.185567,0.00043,120]
[391545215,1760645438904,-156.895218,0.00043038,2]
[391545216,1760645438913,-154.375913,0.00043038,2]
[391545217,1760645438923,-220.0,0.00043068,2]
[391545218,1760645438932,-220.0,0.00043212,7]
[391545219,1760645438941,-800.0,0.00043228,14]
[391545220,1760645438951,-800.0,0.0004323,14]
[391545221,1760645438961,-800.0,0.00043286,14]
[391545222,1760645438970,-165.5687521,0.0004329,2]
[391545223,1760645438980,-5620.72037463,0.000433,2]
[391545224,1760645438989,-287.22,0.00043351,10]
[391545225,1760645438999,-239.35,0.00043351,10]
[391545226,1760645439008,-204.09894027,0.00043359,31]
[391545227,1760645439018,-274.49901458,0.00043359,31]
[391545228,1760645439028,-202.71617174,0.00043359,31]
[391545229,1760645439038,-500.0,0.00043359,31]
[391545230,1760645439047,-153.63177932,0.00043359,31]
[391545231,1760645439057,-301.02640913,0.00043359,2]
[391545232,1760645439067,-231.02379499,0.00043359,31]
[391545233,1760645439077,-500.0,0.00043359,31]
[391545234,1760645439086,-56380.1358957,0.0004336,3]
[391545235,1760645439095,-800.0,0.00043361,14]
[391545236,1760645439105,-471.31709782,0.00043369,31]
[391545237,1760645439114,-202.72503546,0.00043369,31]
[391545238,1760645439124,-502.21,0.0004337,30]
[391545239,1760645439133,-418.51,0.0004337,30]
[391545240,1760645439144,-348.76,0.0004337,30]
[391545241,1760645439154,-290.63,0.0004337,30]
[391545242,1760645439164,-290.63,0.0004337,30]
[391545243,1760645439173,-193.75,0.0004337,30]
[391545244,1760645439183,-161.46,0.0004337,30]
[391545245,1760645439193,-807.34,0.0004337,30]
[391545246,1760645439203,-1999.0,0.0004337,120]
[391545247,1760645439212,-200.0,0.0004337,20]
[391545248,1760645439221,-208.08418,0.0004337,20]
[391545249,1760645439231,-112760.271791,0.0004337,3]
[391545250,1760645439240,-500.0,0.0004338,120]
[391545251,1760645439249,-169140.407687,0.0004338,3]
[391545252,1760645439259,-370000.0,0.0004339,2]
[391545253,1760645439269,-894.96,0.000434,7]
[391545254,1760645439279,-800.0,0.00043402,14]
[391545255,1760645439289,-3191.521,0.00043444,30]
[391545256,1760645439298,-192.93927548,0.00043469,14]
[391545257,1760645439308,-500.0,0.00043473,10]
[391545258,1760645439317,-500.0,0.00043473,10]
[391545259,1760645439327,-500.0,0.00043473,2]
[391545260,1760645439337,-162.804148,0.00043474,2]
[391545261,1760645439347,-3421.5674245,0.00043474,2]
[391545262,1760645439356,-8749.7249781,0.00043474,2]
[391545263,1760645439366,-621.3224645,0.00043474,2]
[391545264,1760645439379,-602.65,0.0004349,30]
[391545265,1760645439410,-190.0,0.0004349,62]
[391545266,1760645439421,-250.0,0.00043499,120]
[391545267,1760645439430,-250.0,0.00043499,120]
[391545268,1760645439440,-250.0,0.00043499,120]
[391545269,1760645439453,-250.0,0.00043499,120]
[391545270,1760645439462,-250.0,0.00043499,120]
[391545271,1760645439472,-250.0,0.00043499,120]
[391545272,1760645439482,-250.0,0.00043499,120]
[391545273,1760645439492,-250.0,0.00043499,120]
[391545274,1760645439501,-250.0,0.00043499,120]
[391545275,1760645439511,-250.0,0.00043499,120]
[391545276,1760645439520,-250.0,0.00043499,120]
[391545277,1760645439530,-250.0,0.00043499,120]
[391545278,1760645439540,-250.0,0.00043499,120]
[391545279,1760645439550,-250.0,0.00043499,120]
[391545280,1760645439559,-250.0,0.00043499,120]
[391545281,1760645439570,-250.0,0.00043499,120]
[391545282,1760645439579,-250.0,0.00043499,120]
[391545283,1760645439588,-250.0,0.00043499,120]
[391545284,1760645439598,-250.0,0.00043499,120]
[391545285,1760645439607,-250.0,0.00043499,120]
[391545286,1760645439616,-250.0,0.00043499,120]
[391545287,1760645439626,-250.0,0.00043499,120]
[391545288,1760645439636,-250.0,0.00043499,120]
[391545289,1760645439646,-250.0,0.00043499,120]
[391545290,1760645439656,-250.0,0.00043499,120]
[391545291,1760645439665,-250.0,0.00043499,120]
[391545292,1760645439675,-250.0,0.00043499,120]
[391545293,1760645439684,-250.0,0.00043499,120]
[391545294,1760645439693,-599.40614523,0.00043499,120]
[391545295,1760645439703,-148126.8069459,0.000435,120]
[391545296,1760645439713,-152.0,0.000435,14]
[391545297,1760645439723,-152.0,0.000435,14]
[391545298,1760645439732,-152.0,0.000435,14]
[391545299,1760645439742,-152.0,0.000435,14]
[391545300,1760645439752,-152.0,0.000435,14]
[391545301,1760645439761,-152.0,0.000435,14]
[391545302,1760645439771,-152.0,0.000435,14]
[391545303,1760645439780,-152.0,0.000435,14]
[391545304,1760645439790,-152.0,0.000435,14]
[391545305,1760645439799,-152.0,0.000435,14]
[391545306,1760645439808,-152.0,0.000435,14]
[391545307,1760645439818,-152.0,0.000435,14]
[391545308,1760645439827,-152.0,0.000435,14]
[391545309,1760645439835,-152.0,0.000435,14]
[391545310,1760645439845,-152.0,0.000435,14]
[391545311,1760645439855,-264.29383983,0.000435,14]
[391545313,1760645439864,-152.0,0.000435,14]
[391545314,1760645439873,-152.0,0.000435,14]
[391545315,1760645439883,-152.0,0.000435,14]
[391545317,1760645439892,-152.0,0.000435,14]
[391545319,1760645439901,-163.0,0.000435,14]
[391545320,1760645439910,-152.0,0.000435,14]
[391545321,1760645439919,-163.0,0.000435,14]
[391545322,1760645439929,-152.0,0.000435,14]
[391545323,1760645439938,-163.0,0.000435,14]
[391545324,1760645439948,-152.0,0.000435,14]
[391545325,1760645439957,-152.0,0.000435,14]
[391545326,1760645439967,-330.0,0.000435,14]
[391545327,1760645439976,-152.0,0.000435,14]
[391545328,1760645439985,-330.0,0.000435,14]
[391545329,1760645439994,-152.0,0.000435,14]
[391545330,1760645440003,-330.0,0.000435,14]
[391545331,1760645440012,-152.0,0.000435,14]
[391545332,1760645440022,-330.0,0.000435,14]
[391545333,1760645440032,-152.0,0.000435,14]
[391545334,1760645440042,-330.0,0.000435,14]
[391545335,1760645440051,-330.0,0.000435,14]
[391545336,1760645440060,-152.0,0.000435,14]
[391545337,1760645440069,-152.0,0.000435,14]
[391545338,1760645440079,-330.0,0.000435,14]
[391545339,1760645440087,-152.0,0.000435,14]
[391545340,1760645440097,-330.0,0.000435,14]
[391545341,1760645440106,-152.0,0.000435,14]
[391545342,1760645440115,-152.0,0.000435,14]
[391545343,1760645440125,-152.0,0.000435,14]
[391545344,1760645440134,-152.0,0.000435,14]
[391545345,1760645440143,-152.0,0.000435,14]
[391545346,1760645440153,-152.0,0.000435,14]
[391545348,1760645440162,-152.0,0.000435,14]
[391545350,1760645440171,-152.0,0.000435,14]
[391545352,1760645440181,-375.7542265,0.00043561,120]
[391545354,1760645440191,-219.0,0.00043631,7]
[391545356,1760645440200,-1099.87742813,0.00043699,90]
[391545358,1760645440210,-600.0,0.00043859,90]
[391545360,1760645440218,-500.0,0.00043873,10]
[391545362,1760645440228,-100087.70423055,0.00043887,60]
[391545364,1760645440238,-151.0,0.00043887,120]
[391545366,1760645440247,-151.0,0.00043887,120]
[391545368,1760645440256,-151.0,0.00043887,120]
[391545370,1760645440266,-151.0,0.00043887,120]
[391545372,1760645440277,-590.63,0.000439,14]
[391545374,1760645440286,-219.0,0.00043918,7]
[391545376,1760645440295,-193.0,0.00044,90]
[391545378,1760645440306,-2246.0,0.00044,2]
[391545380,1760645440315,-181.27775221,0.00044021,10]
[391545382,1760645440324,-1000.0,0.00044021,2]
[391545384,1760645440334,-5620.72037463,0.000441,2]
[391545386,1760645440343,-154.375913,0.00044162,90]
[391545398,1760645440448,-15000.0,0.000442,120]
[391545401,1760645440462,-19601.04405504,0.000444,120]
[391545403,1760645440473,-1000.0,0.00044421,10]
[391545405,1760645440482,-156.895218,0.00044425,90]
[391545407,1760645440492,-154.375913,0.00044425,90]
[391545409,1760645440501,-219.0,0.00044463,2]
[391545411,1760645440511,-537.05869976,0.00044568,2]
[391545412,1760645440519,-219.0,0.00044678,2]
[391545414,1760645440531,-156.895218,0.00044688,90]
[391545416,1760645440540,-154.375913,0.00044688,90]
[391545418,1760645440549,-200.0,0.000447,120]
[391545420,1760645440558,-200.0,0.000447,120]
[391545422,1760645440568,-200.0,0.000447,120]
[391545426,1760645440577,-23253.8,0.000447,42]
[391545428,1760645440586,-1999.0,0.0004474,120]
[391545430,1760645440596,-177.64477798,0.000448,24]
[391545432,1760645440605,-8916.7670604,0.000449,2]
[391545434,1760645440615,-5620.72037463,0.000449,2]
[391545437,1760645440624,-165.56875209,0.000449,2]
[391545438,1760645440633,-156.895218,0.0004495,90]
[391545441,1760645440643,-154.375913,0.0004495,90]
[391545442,1760645440653,-363.50300843,0.00044959,120]
[391545444,1760645440662,-1500.0,0.00044968,10]
[391545446,1760645440672,-287.91938817,0.00044973,10]
[391545448,1760645440681,-150.0,0.00044973,10]
[391545451,1760645440691,-150.0,0.00044973,10]
[391545453,1760645440701,-14999.99999921,0.00045,120]
[391545455,1760645440710,-2099.97,0.00045,30]
[391545457,1760645440719,-870.76032463,0.00045,20]
[391545458,1760645440728,-10364.92783549,0.00045,120]
[391545459,1760645440737,-50844.97536396,0.00045,120]
[391545460,1760645440747,-1163614.85,0.00045,120]
[391545461,1760645440756,-23899.82752493,0.00045,120]
[391545462,1760645440766,-2359.09,0.00045,14]
[391545463,1760645440775,-151.0,0.00045,120]
[391545464,1760645440785,-922.35288,0.00045,120]
[391545465,1760645440795,-922.35288,0.00045,120]
[391545466,1760645440804,-922.35288,0.00045,120]
[391545467,1760645440813,-922.35288,0.00045,120]
[391545468,1760645440822,-199.800285,0.00045,120]
[391545469,1760645440832,-199.800285,0.00045,120]
[391545470,1760645440841,-199.800285,0.00045,120]
[391545471,1760645440851,-199.800285,0.00045,120]
[391545472,1760645440860,-151.0,0.00045,120]
[391545473,1760645440870,-151.0,0.00045,120]
[391545474,1760645440879,-151.0,0.00045,120]
[391545475,1760645440889,-151.0,0.00045,120]
[391545476,1760645440899,-537.686,0.00045012,2]
[391545477,1760645440908,-1097.0,0.00045086,5]
[391545478,1760645440918,-363.50300843,0.00045178,120]
[391545479,1760645440927,-15000.0,0.000452,120]
[391545480,1760645440937,-363.50300843,0.00045397,120]
[391545481,1760645440946,-468.33129304,0.000454,120]
[391545482,1760645440955,-150.0,0.0004544,2]
[391545483,1760645440964,-78778.4698,0.00045444,30]
[391545484,1760645440974,-676625.2927,0.00045444,30]
[391545485,1760645440984,-151.0,0.00045444,120]
[391545486,1760645440993,-922.35288,0.00045444,120]
[391545487,1760645441002,-922.35288,0.00045444,120]
[391545488,1760645441012,-922.35288,0.00045444,120]
[391545489,1760645441021,-922.35288,0.00045444,120]
[391545490,1760645441031,-199.800285,0.00045444,120]
[391545491,1760645441041,-199.800285,0.00045444,120]
[391545492,1760645441050,-199.800285,0.00045444,120]